fUSD/lending_fUSD_20260108
["ID","MTS","AMOUNT","RATE_DAILY","PERIOD"]
[400914559,1767861705741,-81.0199558,0.00011109,2]
[400914560,1767861705763,-81.4677806,0.00011119,2]
[400914561,1767861709053,-328.97649477,0.00011119,2]
[400914562,1767861712005,-250.0,0.00011119,2]
[400914563,1767861714731,-948.14402246,0.00011119,2]
[400914564,1767861722633,4744.82486203,0.00010959,2]
[400914565,1767861722660,981.03147857,0.00010959,2]
[400914566,1767861722691,1121.7945331,0.00010959,2]
[400914567,1767861722718,611.91492467,0.00010959,2]
[400914568,1767861722743,26.54420163,0.00010959,2]
[400914569,1767861729309,-145.68725198,0.00011119,2]
[400914570,1767861729339,-173.84870699,0.00011119,2]
[400914571,1767861729370,-300.0,0.00011421,2]
[400914572,1767861729400,-150.0,0.00011421,2]
[400914573,1767861729430,-1023.99997772,0.00011422,2]
[400914574,1767861729460,-300.0,0.00011422,2]
[400914575,1767861729490,-1859.822,0.00011422,2]
[400914576,1767861729524,-167.921,0.00011422,2]
[400914577,1767861729555,-274.64163373,0.00011422,2]
[400914578,1767861729583,-353.37374462,0.00011422,2]
[400914579,1767861729615,-183.92776513,0.00011422,2]
[400914580,1767861730926,-133.56583966,0.00011422,2]
[400914581,1767861730957,-500.0,0.00011422,2]
[400914582,1767861730987,-357.70874116,0.00011422,2]
[400914583,1767861731018,-500.0,0.00011422,2]
[400914584,1767861731050,-500.0,0.00011422,2]
[400914585,1767861731080,-191.76481661,0.00011422,2]
[400914586,1767861731118,-500.0,0.00011422,2]
[400914587,1767861731148,-226.0802027,0.00011422,2]
[400914588,1767861731182,-500.0,0.00011422,2]
[400914589,1767861731213,-500.0,0.00011422,2]
[400914590,1767861731247,-500.0,0.00011422,2]
[400914591,1767861731280,-500.0,0.00011422,2]
[400914592,1767861731900,-133.56583966,0.00011422,2]
[400914593,1767861731935,-181.77079974,0.00011422,2]
[400914594,1767861735400,-184.6633606,0.00011422,2]
[400914595,1767861735434,-402.02399856,0.00011422,2]
[400914596,1767861735466,-500.0,0.00011422,2]
[400914597,1767861735499,-500.0,0.00011422,2]
[400914598,1767861735536,-500.0,0.00011422,2]
[400914599,1767861735572,-500.0,0.00011422,2]
[400914600,1767861735608,-500.0,0.00011422,2]
[400914601,1767861735642,-500.0,0.00011422,2]
[400914602,1767861735675,-500.0,0.00011422,2]
[400914603,1767861735708,-500.0,0.00011422,2]
[400914604,1767861735740,-326.63528168,0.00011422,2]
[400914605,1767861736343,-173.36471832,0.00011422,2]
[400914606,1767861736383,-500.0,0.00011422,2]
[400914607,1767861736418,-500.0,0.00011422,2]
[400914608,1767861736452,-500.0,0.00011422,2]
[400914609,1767861736486,-500.0,0.00011422,2]
[400914610,1767861736521,-500.0,0.00011422,2]
[400914611,1767861736553,-500.0,0.00011422,2]
[400914612,1767861736585,-500.0,0.00011422,2]
[400914613,1767861736617,-500.0,0.00011422,2]
[400914614,1767861736649,-500.0,0.00011422,2]
[400914615,1767861736681,-153.28056336,0.00011422,2]
[400914616,1767861737267,-20.08415496,0.00011422,2]
[400914617,1767861737286,-326.63528168,0.00011422,2]
[400914618,1767861737296,-173.36471832,0.00011422,2]
[400914619,1767861738562,-326.63528168,0.00011422,2]
[400914620,1767861738595,-500.0,0.00011422,2]
[400914621,1767861738628,-500.0,0.00011422,2]
[400914622,1767861738660,-500.0,0.00011422,2]
[400914623,1767861738692,-500.0,0.00011422,2]
[400914624,1767861738724,-500.0,0.00011422,2]
[400914625,1767861738756,-500.0,0.00011422,2]
[400914626,1767861738786,-500.0,0.00011422,2]
[400914627,1767861738819,-500.0,0.00011422,2]
[400914628,1767861738851,-500.0,0.00011422,2]
[400914629,1767861739064,-346.73943664,0.00011422,2]
[400914633,1767861772691,-293.18,0.00011233,2]
[400914634,1767861772722,-153.26056336,0.00011422,2]
[400914635,1767861772767,-500.0,0.00011422,2]
[400914636,1767861772802,-500.0,0.00011422,2]
[400914637,1767861772836,-500.0,0.00011422,2]
[400914638,1767861772868,-500.0,0.00011422,2]
[400914639,1767861772900,-500.0,0.00011422,2]
[400914640,1767861772931,-550.0,0.00011422,2]
[400914641,1767861772961,-500.0,0.00011422,2]
[400914642,1767861772992,-500.0,0.00011422,2]
[400914643,1767861773023,-500.0,0.00011422,2]
[400914644,1767861773197,-7.12887328,0.00011422,2]
[400914645,1767861778775,-492.87112672,0.00011422,2]
[400914646,1767861778806,-500.0,0.00011422,2]
[400914647,1767861778837,-500.0,0.00011422,2]
[400914648,1767861778867,-500.0,0.00011422,2]
[400914649,1767861778897,-500.0,0.00011422,2]
[400914650,1767861778931,-500.0,0.00011422,2]
[400914651,1767861778962,-500.0,0.00011422,2]
[400914652,1767861778993,-500.0,0.00011422,2]
[400914653,1767861779023,-500.0,0.00011422,2]
[400914654,1767861779053,-500.0,0.00011422,2]
[400914655,1767861779224,-14.26774656,0.00011422,2]
[400914656,1767861782917,1186.66217282,0.00011044,2]
[400914657,1767861782942,525.51391371,0.00011044,2]
[400914658,1767861782967,264.05854714,0.00011044,2]
[400914659,1767861782991,224.90329881,0.00011044,2]
[400914660,1767861783013,181.21454714,0.00011044,2]
[400914661,1767861783037,375.58664605,0.00011044,2]
[400914662,1767861785024,-2372.20087433,0.00011044,2]
[400914663,1767861785056,-300.0,0.00011422,2]
[400914664,1767861785089,-485.73225344,0.00011422,2]
[400914665,1767861785123,-500.0,0.00011422,2]
[400914666,1767861785155,-500.0,0.00011422,2]
[400914667,1767861785184,-243.0,0.00011423,2]
[400914668,1767861785314,-1198.14374446,0.00011423,2]
[400914669,1767861818694,-406.26850055,0.00010963,2]
[400914670,1767861822712,-253.1701093,0.00010963,2]
[400914671,1767861825573,-344.96184066,0.00010963,2]
[400914672,1767861827088,-250.34198456,0.00010963,2]
[400914673,1767861828665,-363.40227131,0.00010963,2]
[400914674,1767861830259,-174.54690617,0.00010963,2]
[400914675,1767861832139,-202.81075899,0.00010963,2]
[400914676,1767861833860,-323.60212281,0.00010963,2]
[400914677,1767861836603,-200.0,0.00010963,2]
[400914678,1767861838146,-365.45015482,0.00010963,2]
[400914679,1767861845013,-443.43511023,0.00010963,2]
[400914680,1767861847168,-200.0,0.00010963,2]
[400914681,1767861850298,-330.44874365,0.00010963,2]
[400914682,1767861853435,-327.35102196,0.00010963,2]
[400914683,1767861854539,-235.95137901,0.00010963,2]
[400914684,1767861856086,-172.83258673,0.00010963,2]
[400914685,1767861858331,-672.62650925,0.00010963,2]
[400914686,1767861858362,-1200.0,0.00011422,2]
[400914687,1767861858394,-300.0,0.00011422,2]
[400914688,1767861858428,-500.0,0.00011422,2]
[400914689,1767861858465,-595.22354329,0.00011422,2]
[400914690,1767861858495,-250.0,0.00011423,2]
[400914691,1767861858673,-2964.30989492,0.00011423,2]
[400914692,1767861858773,-10000.01,0.00011423,2]
[400914693,1767861858805,-10000.01,0.00011423,2]
[400914694,1767861858864,-10000.01,0.00011423,2]
[400914695,1767861860257,-10000.01,0.00011423,2]
[400914696,1767861860299,-10000.01,0.00011423,2]
[400914697,1767861860315,-10000.01,0.00011423,2]
[400914698,1767861860340,-10000.01,0.00011423,2]
[400914699,1767861860357,-10000.01,0.00011423,2]
[400914700,1767861861995,-1144.28136972,0.00011423,2]
[400914701,1767861862020,-7711.44726056,0.00011423,2]
[400914702,1767861868187,-361.20476566,0.00011351,2]
[400914703,1767861868230,-300.0,0.00011451,2]
[400914704,1767861868274,-250.0,0.00011461,2]
[400914705,1767861868321,-195.0,0.00011478,2]
[400914706,1767861868437,-7787.60046868,0.00011481,2]
[400914707,1767861877002,-10000.01,0.00011481,2]
[400914708,1767861883591,-1716.46534217,0.00011481,2]
[400914709,1767861883621,-300.0,0.0001153,2]
[400914710,1767861883650,-300.0,0.0001153,2]
[400914711,1767861883678,-150.0,0.00011558,2]
[400914712,1767861883707,-500.0,0.00011558,2]
[400914713,1767861883736,-500.0,0.00011558,2]
[400914714,1767861883763,-500.0,0.00011558,2]
[400914715,1767861883791,-150.0,0.00011558,2]
[400914716,1767861883820,-277.3925399,0.0001158,2]
[400914717,1767861883848,-500.0,0.0001158,2]
[400914718,1767861883878,-20.04509225,0.0001158,2]
[400914719,1767861884525,-172.20405136,0.0001158,2]
[400914720,1767861889775,-302.00443205,0.0001158,2]
[400914721,1767861889803,-518.64823391,0.0001158,2]
[400914722,1767861889833,-500.0,0.0001158,2]
[400914723,1767861889861,-191.78668919,0.0001158,2]
[400914724,1767861889891,-500.0,0.0001158,2]
[400914725,1767861889920,-500.0,0.0001158,2]
[400914726,1767861889949,-500.0,0.0001158,2]
[400914727,1767861889977,-500.0,0.0001158,2]
[400914728,1767861890007,-495.20239986,0.0001158,2]
[400914729,1767861890033,-195.0,0.00011581,2]
[400914730,1767861890059,-594.73648998,0.00011581,2]
[400914731,1767861890206,-405.25351002,0.00011581,2]
[400914732,1767861911492,-300.0,0.0001158,2]
[400914733,1767861911523,-1200.0,0.0001158,2]
[400914734,1767861911553,-150.0,0.0001158,2]
[400914735,1767861911585,-195.0,0.0001158,2]
[400914736,1767861911624,-1465.64,0.00011581,2]
[400914737,1767861911736,-3378.73,0.00011581,2]
[400914754,1767861921298,-150.0,0.0001154,2]
[400914755,1767861921328,-221.72177176,0.0001154,2]
[400914756,1767861921357,-300.0,0.0001156,2]
[400914757,1767861921388,-250.0,0.0001156,2]
[400914758,1767861921417,-1535.30645648,0.00011581,2]
[400914759,1767861921510,-5085.95354352,0.00011581,2]
[400914771,1767861970170,-2500.0,0.00011533,2]
[400914772,1767861970204,-210.66688814,0.0001158,2]
[400914773,1767861970236,-500.0,0.0001158,2]
[400914774,1767861970264,-193.0,0.0001158,2]
[400914775,1767861970294,-195.0,0.0001158,2]
[400914776,1767861970323,-300.0,0.0001158,2]
[400914777,1767861970351,-188.94617776,0.00011581,2]
[400914778,1767861970381,-150.99,0.00011581,2]
[400914779,1767861970545,-1522.8038682,0.00011581,2]
[400914780,1767861970763,-1522.8238682,0.00011581,2]
[400914781,1767861970799,-6954.3622636,0.00011581,2]
[400914782,1767861976032,-499.99,0.00011581,2]
[400914783,1767861976067,-9000.03,0.00011581,2]
[400914784,1767861976137,-999.96,0.00011581,2]
[400914785,1767861976167,-1117.65,0.00011581,2]
[400914786,1767861976202,-5764.79,0.00011581,2]
[400914807,1767862088852,1500.00341608,0.00032877,120]
[400914828,1767862108625,-2500.0,0.00011533,2]
[400914829,1767862108652,-1200.0,0.00011539,2]
[400914830,1767862108681,-500.0,0.0001154,2]
[400914831,1767862108712,-150.0,0.0001154,2]
[400914832,1767862108741,-500.0,0.0001154,2]
[400914833,1767862108831,-300.01,0.0001154,2]
[400914837,1767862123301,-199.99,0.0001154,2]
[400914838,1767862123330,-1173.0,0.0001154,2]
[400914839,1767862123358,-500.0,0.0001154,2]
[400914840,1767862123396,-500.0,0.0001154,2]
[400914841,1767862123427,-150.0,0.0001154,2]
[400914842,1767862123455,-500.0,0.0001154,2]
[400914843,1767862123486,-500.0,0.0001154,2]
[400914844,1767862123514,-500.0,0.0001154,2]
[400914845,1767862123542,-300.0,0.00011579,2]
[400914846,1767862123574,-300.0,0.00011579,2]
[400914847,1767862123603,-150.0,0.00011579,2]
[400914848,1767862123632,-154.03,0.00011579,2]
[400914849,1767862123812,-145.97,0.00011579,2]
[400914850,1767862126358,-240.46264939,0.0001158,2]
[400914851,1767862126394,-500.0,0.0001158,2]
[400914852,1767862126430,-500.0,0.0001158,2]
[400914853,1767862126464,-500.0,0.0001158,2]
[400914854,1767862126498,-500.0,0.0001158,2]
[400914855,1767862126532,-500.0,0.0001158,2]
[400914856,1767862126565,-500.0,0.0001158,2]
[400914857,1767862126603,-500.0,0.0001158,2]
[400914858,1767862126639,-500.0,0.0001158,2]
[400914859,1767862126672,-500.0,0.0001158,2]
[400914860,1767862126705,-19.08470122,0.0001158,2]
[400914861,1767862126862,-480.91529878,0.0001158,2]
[400914875,1767862231512,-418.26636555,0.00011533,2]
[400914876,1767862231527,-1388.91954942,0.00011533,2]
[400914877,1767862231542,-778.15698503,0.00011533,2]
[400914878,1767862231555,-244.0,0.00011533,2]
[400914879,1767862231572,-150.0,0.0001154,2]
[400914880,1767862231585,-150.0,0.0001154,2]
[400914898,1767862232195,-300.0,0.0001158,2]
[400914899,1767862232232,-300.0,0.0001158,2]
[400914900,1767862232269,-422.868,0.0001158,2]
[400914901,1767862232297,-395.00000005,0.0001158,2]
[400914902,1767862232317,-382.13199995,0.0001158,2]
[400914903,1767862232326,-5884.67,0.00011581,2]
[400914904,1767862232337,-9999.99,0.00011581,2]
[400914905,1767862232346,-299.99,0.00011581,2]
[400914906,1767862232356,-9999.99,0.00011581,2]
[400914907,1767862232366,-426.19,0.00011581,2]
[400914908,1767862232375,-568.04025038,0.00011581,2]
[400914909,1767862232387,-574.24112448,0.00011581,2]
[400914910,1767862232398,-462.06862514,0.00011581,2]
[400914911,1767862232408,-2095.37,0.00011581,2]
[400914912,1767862232419,-8526.42,0.00011581,2]
[400914913,1767862232428,-4987.2,0.00011581,2]
[400914914,1767862232438,-1548.21,0.00011581,2]
[400914915,1767862232447,-200.0,0.00011581,2]
[400914916,1767862232456,-300.0,0.00011582,2]
[400914917,1767862232466,-150.0,0.00011595,2]
[400914918,1767862232475,-150.0,0.00011595,2]
[400914919,1767862232484,-500.0,0.00011595,2]
[400914920,1767862232494,-500.0,0.00011595,2]
[400914921,1767862232503,-500.0,0.00011595,2]
[400914922,1767862232513,-1173.0,0.00011595,2]
[400914923,1767862232522,-500.0,0.00011595,2]
[400914924,1767862232533,-419.97512683,0.00011595,2]
[400914925,1767862232543,-500.0,0.00011595,2]
[400914926,1767862232552,-500.0,0.00011595,2]
[400914927,1767862232562,-521.38436778,0.00011595,2]
[400914928,1767862232570,-150.0,0.00011595,2]
[400914929,1767862232580,-164.77040348,0.00011595,2]
[400914930,1767862232589,-1609.86,0.00011595,2]
[400914931,1767862232598,-500.0,0.00011632,2]
[400914932,1767862232608,-243.6154296,0.00011632,2]
[400914933,1767862232617,-194.17477793,0.00011632,2]
[400914934,1767862232626,-7632.64,0.00011633,2]
[400914935,1767862232635,-347.78,0.00011633,2]
[400914936,1767862232644,-36923.15666791,0.00011633,2]
[400914937,1767862232658,-2205.0654408,0.00011633,2]
[400914938,1767862232670,-999.0,0.00011633,2]
[400914946,1767862237581,-1440.86061347,0.00011533,2]
[400914947,1767862237592,-2668.57058653,0.00011533,2]
[400914948,1767862237601,-883.34381972,0.00011633,2]
[400914949,1767862237612,-1266.93652157,0.00011633,2]
[400914950,1767862237624,-4260.7214948,0.00011633,2]
[400914951,1767862237635,-588.0,0.00011633,2]
[400914952,1767862237648,-825.89185212,0.00011633,2]
[400914953,1767862237694,-39273.64420308,0.00011633,2]
[400914954,1767862237703,-150.99,0.00011633,2]
[400914955,1767862237714,-33320.96166064,0.00011633,2]
[400914956,1767862237724,-20829.42871584,0.00011633,2]
[400914957,1767862237737,-409.67528064,0.00011633,2]
[400914958,1767862237746,-250.0,0.0001165,2]
[400914959,1767862237756,-500.0,0.0001165,2]
[400914960,1767862237766,-182.10117033,0.0001165,2]
[400914961,1767862237776,-500.0,0.0001165,2]
[400914962,1767862237787,-500.0,0.0001165,2]
[400914963,1767862237796,-1173.0,0.0001165,2]
[400914964,1767862237806,-500.0,0.0001165,2]
[400914966,1767862237817,-500.0,0.0001165,2]
[400914967,1767862237828,-500.0,0.0001165,2]
[400914968,1767862237837,-211.64498178,0.0001165,2]
[400914969,1767862237848,-200.0,0.00011697,2]
[400914970,1767862237858,-500.0,0.00011704,2]
[400914972,1767862237867,-500.0,0.00011704,2]
[400914973,1767862237876,-500.0,0.00011704,2]
[400914974,1767862237885,-1173.0,0.00011704,2]
[400914975,1767862237896,-500.0,0.00011704,2]
[400914976,1767862237905,-500.0,0.00011704,2]
[400914977,1767862237915,-216.31193931,0.00011704,2]
[400914979,1767862237924,-200.0,0.00011726,2]
[400914981,1767862237933,-151.0,0.00011726,2]
[400914983,1767862237942,-151.0,0.00011726,2]
[400914985,1767862237951,-151.0,0.00011726,2]
[400914988,1767862237964,-151.0,0.00011726,2]
[400914990,1767862237974,-151.0,0.00011726,2]
[400914992,1767862237983,-151.0,0.00011726,2]
[400914994,1767862237993,-151.0,0.00011726,2]
[400914996,1767862238002,-151.0,0.00011726,2]
[400914998,1767862238011,-151.0,0.00011726,2]
[400915000,1767862238020,-151.0,0.00011726,2]
[400915002,1767862238030,-500.0,0.00011726,2]
[400915004,1767862238039,-151.0,0.00011726,2]
[400915006,1767862238048,-151.0,0.00011726,2]
[400915008,1767862238057,-151.0,0.00011726,2]
[400915009,1767862238066,-151.0,0.00011726,2]
[400915011,1767862238075,-151.0,0.00011726,2]
[400915014,1767862238085,-151.0,0.00011726,2]
[400915016,1767862238094,-151.0,0.00011726,2]
[400915018,1767862238103,-151.0,0.00011726,2]
[400915020,1767862238112,-151.0,0.00011726,2]
[400915021,1767862238122,-151.0,0.00011726,2]
[400915023,1767862238131,-1000.0,0.00011733,2]
[400915025,1767862238141,-33580.3823,0.00011733,2]
[400915027,1767862238150,-200.0,0.00011733,2]
[400915029,1767862238159,-236.84599784,0.00011733,2]
[400915031,1767862238168,-500.0,0.00011759,2]
[400915033,1767862238178,-500.0,0.00011759,2]
[400915035,1767862238187,-500.0,0.00011759,2]
[400915037,1767862238196,-1173.0,0.00011759,2]
[400915039,1767862238205,-500.0,0.00011759,2]
[400915041,1767862238214,-500.0,0.00011759,2]
[400915043,1767862238223,-500.0,0.00011814,2]
[400915045,1767862238233,-500.0,0.00011814,2]
[400915048,1767862238243,-500.0,0.00011814,2]
[400915050,1767862238252,-1173.0,0.00011814,2]
[400915052,1767862238262,-500.0,0.00011814,2]
[400915053,1767862238272,-231.23799714,0.00011814,2]
[400915055,1767862238282,-200.0,0.00011814,2]
[400915057,1767862238291,-200.0,0.0001185,2]
[400915059,1767862238300,-500.0,0.00011869,2]
[400915061,1767862238309,-500.0,0.00011869,2]
[400915063,1767862238318,-500.0,0.00011869,2]
[400915066,1767862238328,-1173.0,0.00011869,2]
[400915068,1767862238337,-500.0,0.00011869,2]
[400915069,1767862238348,-1609.86,0.00011869,2]
[400915071,1767862238358,-500.0,0.00011906,2]
[400915074,1767862238368,-500.0,0.00011924,2]
[400915076,1767862238377,-500.0,0.00011924,2]
[400915078,1767862238387,-500.0,0.00011924,2]
[400915080,1767862238396,-1173.0,0.00011924,2]
[400915081,1767862238405,-500.0,0.00011924,2]
[400915084,1767862238416,-200.0,0.00011932,2]
[400915085,1767862238425,-200.0,0.00011969,2]
[400915087,1767862238435,-500.0,0.00011978,2]
[400915089,1767862238444,-500.0,0.00011978,2]
[400915091,1767862238453,-500.0,0.00011978,2]
[400915094,1767862238463,-1173.0,0.00011978,2]
[400915095,1767862238473,-500.0,0.00011978,2]
[400915097,1767862238482,-500.0,0.00012033,2]
[400915099,1767862238492,-500.0,0.00012033,2]
[400915101,1767862238501,-500.0,0.00012033,2]
[400915103,1767862238511,-1173.0,0.00012033,2]
[400915106,1767862238521,-500.0,0.00012033,2]
[400915108,1767862238530,-200.0,0.00012051,2]
[400915110,1767862238540,-500.0,0.00012088,2]
[400915111,1767862238550,-500.0,0.00012088,2]
[400915113,1767862238560,-500.0,0.00012088,2]
[400915116,1767862238570,-1173.0,0.00012088,2]
[400915117,1767862238580,-500.0,0.00012088,2]
[400915119,1767862238590,-200.0,0.00012089,2]
[400915121,1767862238600,-358.46587056,0.00012098,2]
[400915124,1767862238610,-500.0,0.00012143,2]
[400915125,1767862238619,-500.0,0.00012143,2]
[400915128,1767862238630,-500.0,0.00012143,2]
[400915130,1767862238639,-1173.0,0.00012143,2]
[400915132,1767862238649,-500.0,0.00012143,2]
[400915134,1767862238659,-1609.86,0.00012143,2]
[400915136,1767862238670,-500.0,0.0001218,2]
[400915137,1767862238680,-500.0,0.00012198,2]
[400915139,1767862238690,-236.20445804,0.00012198,2]
[400915141,1767862238700,-471.85856957,0.00012198,2]
[400915143,1767862238710,-1173.0,0.00012198,2]
[400915145,1767862238719,-440.06247596,0.00012198,2]
[400915147,1767862238729,-200.0,0.00012209,2]
[400915149,1767862238739,-335.18,0.00012226,2]
[400915152,1767862238748,-500.0,0.00012252,2]
[400915154,1767862238758,-1173.0,0.00012252,2]
[400915156,1767862238768,-500.0,0.00012274,2]
[400915158,1767862238777,-500.0,0.00012307,2]
[400915160,1767862238787,-1173.0,0.00012307,2]
[400915162,1767862238796,-20829.4287158,0.00012329,2]
[400915164,1767862238807,-500.0,0.00012362,2]
[400915166,1767862238817,-1173.0,0.00012362,2]
[400915168,1767862238827,-500.0,0.00012417,2]
[400915170,1767862238837,-1173.0,0.00012417,2]
[400915171,1767862238847,-1609.86,0.00012417,2]
[400915174,1767862238857,-1000.85057696,0.00012428,2]
[400915175,1767862238866,-500.0,0.00012454,2]
[400915177,1767862238875,-392.21018207,0.00012472,2]
[400915179,1767862238885,-1173.0,0.00012472,2]
[400915181,1767862238894,-150.49525617,0.00012521,2]
[400915183,1767862238903,-150.0,0.00012521,2]
[400915185,1767862238913,-150.0,0.00012521,2]
[400915187,1767862238922,-150.0,0.00012521,2]
[400915189,1767862238931,-288.61019467,0.00012521,2]
[400915191,1767862238940,-500.0,0.00012521,2]
[400915193,1767862238950,-150.0,0.00012521,2]
[400915195,1767862238961,-1173.0,0.00012526,2]
[400915197,1767862238970,-409.67528061,0.00012528,2]
[400915199,1767862238980,-231.03492311,0.00012576,2]
[400915202,1767862238990,-150.0,0.00012576,2]
[400915204,1767862239000,-184.06920116,0.00012576,2]
[400915206,1767862239011,-500.0,0.00012576,2]
[400915207,1767862239020,-150.0,0.00012576,2]
[400915209,1767862239030,-600.0,0.00012577,2]
[400915211,1767862239040,-286.25,0.00012577,2]
[400915214,1767862239051,-1173.0,0.00012581,2]
[400915216,1767862239060,-150.0,0.00012631,2]
[400915218,1767862239069,-500.0,0.00012631,2]
[400915220,1767862239079,-206.22263087,0.00012631,2]
[400915221,1767862239088,-1173.0,0.00012636,2]
[400915223,1767862239097,-255.0,0.00012644,2]
[400915226,1767862239107,-1680.0,0.00012673,2]
[400915228,1767862239116,-150.0,0.00012685,2]
[400915230,1767862239127,-500.0,0.00012685,2]
[400915232,1767862239136,-1101.72360627,0.00012688,2]
[400915234,1767862239146,-1173.0,0.00012691,2]
[400915236,1767862239155,-1609.86,0.00012691,2]
[400915238,1767862239164,-300.0,0.00012694,2]
[400915240,1767862239173,-250.0,0.00012694,2]
[400915242,1767862239182,-195.0,0.00012694,2]
[400915244,1767862239193,-300.0,0.00012694,2]
[400915246,1767862239202,-193.0,0.00012694,2]
[400915248,1767862239211,-195.0,0.00012694,2]
[400915250,1767862239221,-420.0,0.00012718,2]
[400915252,1767862239230,-1000.0,0.00012721,2]
[400915254,1767862239240,-500.0,0.00012728,2]
[400915256,1767862239249,-193.0,0.00012738,2]
[400915258,1767862239258,-195.0,0.00012738,2]
[400915260,1767862239267,-195.0,0.00012738,2]
[400915262,1767862239278,-300.0,0.00012738,2]
[400915263,1767862239288,-250.0,0.00012738,2]
[400915266,1767862239297,-1680.0,0.00012738,2]
[400915268,1767862239306,-195.0,0.00012738,2]
[400915270,1767862239315,-300.0,0.00012739,2]
[400915272,1767862239325,-250.0,0.00012739,2]
[400915274,1767862239334,-150.0,0.0001274,2]
[400915276,1767862239342,-500.0,0.0001274,2]
[400915278,1767862239352,-1173.0,0.00012745,2]
[400915279,1767862239361,-189.0183163,0.00012795,2]
[400915282,1767862239370,-500.0,0.00012795,2]
[400915284,1767862239380,-1196.41648618,0.000128,2]
[400915286,1767862239390,-500.0,0.00012822,2]
[400915288,1767862239399,-500.0,0.0001285,2]
[400915290,1767862239409,-1240.88,0.00012893,2]
[400915292,1767862239419,-9999.99,0.00012893,2]
[400915294,1767862239428,-500.0,0.00012905,2]
[400915297,1767862239437,-604.6,0.00012913,2]
[400915300,1767862239446,-76551.467693,0.00012926,2]
[400915303,1767862239455,-358.46587053,0.00012927,2]
[400915306,1767862239464,-500.0,0.00012959,2]
[400915309,1767862239474,-1609.86,0.00012965,2]
[400915312,1767862239483,-500.0,0.00013002,2]
[400915315,1767862239492,-500.0,0.00013014,2]
[400915318,1767862239502,-20829.4287158,0.00013026,2]
[400915321,1767862239511,-500.0,0.00013069,2]
[400915324,1767862239521,-209.91190666,0.00013124,2]
[400915326,1767862239530,-1609.86,0.00013239,2]
[400915329,1767862239539,-500.0,0.00013276,2]
[400915332,1767862239549,-1000.85057695,0.0001334,2]
[400915335,1767862239557,-1100.0,0.00013356,2]
[400915338,1767862239566,-2499.42,0.000134,2]
[400915341,1767862239575,-409.67528061,0.00013424,2]
[400915344,1767862239584,-1377.13522971,0.00013473,2]
[400915347,1767862239593,-322.6107,0.00013473,2]
[400915349,1767862239604,-151.0,0.00013473,2]
[400915352,1767862239613,-156.587,0.00013473,2]
[400915355,1767862239623,-162.380719,0.00013473,2]
[400915358,1767862239632,-155.23859657,0.00013473,2]
[400915361,1767862239641,-151.0,0.00013473,2]
[400915364,1767862239651,-1500.0,0.00013473,2]
[400915367,1767862239666,-1500.0,0.00013473,2]
[400915369,1767862239675,-1500.0,0.00013473,2]
[400915371,1767862239684,-1500.0,0.00013473,2]
[400915373,1767862239694,-1500.0,0.00013473,2]
[400915375,1767862239703,-1500.0,0.00013473,2]
[400915377,1767862239712,-1500.0,0.00013473,2]
[400915379,1767862239721,-1500.0,0.00013473,2]
[400915381,1767862239731,-574.12855637,0.00013473,2]
[400915383,1767862239741,-1500.0,0.00013473,2]
[400915386,1767862239751,-209.40437684,0.00013473,2]
[400915388,1767862239761,-1500.0,0.00013473,2]